bitfinex-derivatives/quotes_BTCF0:USTF0_20250901
["timestamp","ask_amount","ask_price","bid_price","bid_amount"]
[1756713326047,0.59552,109370.0,109360.0,0.3608]
[1756713326345,0.61496556,109370.0,109360.0,0.3608]
[1756713326547,0.61496556,109370.0,109360.0,0.6108]
[1756713326752,0.93604556,109370.0,109360.0,0.96117981]
[1756713326955,0.93604556,109370.0,109360.0,0.6108]
[1756713327255,0.93628556,109370.0,109360.0,0.6108]
[1756713327751,0.01944556,109370.0,109360.0,0.6108]
[1756713328062,0.93776556,109370.0,109360.0,0.6108]
[1756713328964,0.01944556,109370.0,109360.0,0.96117981]
[1756713329456,0.01944556,109370.0,109360.0,0.3608]
[1756713329856,0.01944556,109370.0,109360.0,0.6108]
[1756713330358,0.01944556,109370.0,109360.0,0.3608]
[1756713333756,1.29512129,109380.0,109360.0,0.3608]
[1756713334054,0.02658148,109380.0,109370.0,0.3608]
[1756713334358,0.94094148,109380.0,109370.0,0.3608]
[1756713334755,0.94090148,109380.0,109370.0,0.3608]
[1756713335152,0.02658148,109380.0,109370.0,0.3608]
[1756713335357,0.94074148,109380.0,109370.0,0.3608]
[1756713336057,0.02658148,109380.0,109370.0,1.05260291]
[1756713336259,0.02658148,109380.0,109370.0,0.6108]
[1756713337262,0.02658148,109380.0,109370.0,0.36994926]
[1756713337462,1.28976129,109380.0,109370.0,0.36994926]
[1756713337859,0.93938148,109380.0,109370.0,0.36994926]
[1756713338458,1.28976129,109380.0,109370.0,0.36994926]
[1756713338963,0.93938148,109380.0,109370.0,0.36994926]
[1756713339664,0.93866148,109380.0,109370.0,0.36994926]
[1756713340462,0.93798148,109380.0,109370.0,0.36994926]
[1756713342557,0.02658148,109380.0,109370.0,0.37094926]
[1756713342759,0.93714148,109380.0,109370.0,0.37094926]
[1756713343765,0.02658148,109380.0,109370.0,0.37094926]
[1756713343968,0.93626148,109380.0,109370.0,0.37094926]
[1756713344262,0.93626148,109380.0,109370.0,0.37194926]
[1756713344966,0.93542148,109380.0,109370.0,0.37294926]
[1756713345566,0.02658148,109380.0,109370.0,0.46437286]
[1756713345760,0.93470148,109380.0,109370.0,0.46437286]
[1756713346368,0.93402148,109380.0,109370.0,0.46437286]
[1756713346569,0.02658148,109380.0,109370.0,0.46437286]
[1756713346862,0.02658148,109380.0,109370.0,0.46337286]
[1756713347069,0.02658148,109380.0,109370.0,0.46437286]
[1756713347566,0.02658148,109380.0,109370.0,1.06375267]
[1756713348063,0.02658148,109380.0,109370.0,1.06475267]
[1756713352574,0.3608,109430.0,109370.0,1.39475267]
[1756713352764,0.01946214,109430.0,109420.0,0.3608]
[1756713352961,0.30358214,109430.0,109420.0,0.80256201]
[1756713353768,0.01946214,109430.0,109420.0,0.8752069]
[1756713354077,0.75606214,109450.0,109420.0,0.52482139]
[1756713354272,0.90284,109450.0,109440.0,0.3608]
[1756713354469,1.25321981,109450.0,109430.0,0.3608]
[1756713354665,0.90284,109450.0,109430.0,0.3608]
[1756713355268,2.34214862,109460.0,109440.0,0.3608]
[1756713355473,0.9032,109450.0,109430.0,0.36982092]
[1756713355970,1.30280843,109450.0,109430.0,0.36982092]
[1756713356176,1.25357981,109450.0,109430.0,0.36982092]
[1756713356375,1.30280843,109450.0,109430.0,0.3608]
[1756713356577,0.35037981,109440.0,109430.0,0.3608]
[1756713357074,1.31322862,109450.0,109430.0,0.3608]
[1756713357279,0.35037981,109440.0,109430.0,0.3608]
[1756713357573,0.35037981,109440.0,109430.0,0.3618]
[1756713357774,1.66360843,109450.0,109430.0,0.3618]
[1756713358085,1.30280843,109450.0,109430.0,0.3618]
[1756713358278,0.39960843,109450.0,109430.0,0.3618]
[1756713358472,0.90204,109440.0,109430.0,0.3618]
[1756713358668,1.25241981,109440.0,109430.0,0.3618]
[1756713358883,1.66244843,109440.0,109430.0,0.001]
[1756713359179,1.61321981,109440.0,109430.0,0.001]
[1756713360376,1.66244843,109440.0,109430.0,0.001]
[1756713360681,1.30140843,109440.0,109430.0,0.001]
[1756713360883,0.60037981,109440.0,109430.0,0.001]
[1756713361182,0.9012,109440.0,109430.0,0.3618]
[1756713361383,1.30080843,109440.0,109430.0,0.3608]
[1756713361683,1.30080843,109440.0,109430.0,0.3618]
[1756713362176,1.55080843,109440.0,109430.0,0.3618]
[1756713362383,1.19986862,109440.0,109430.0,0.3618]
[1756713362578,1.50101981,109440.0,109430.0,0.3618]
[1756713362777,1.50101981,109440.0,109430.0,0.001]
[1756713363276,0.39960843,109440.0,109430.0,0.001]
[1756713363480,1.29968843,109440.0,109430.0,0.001]
[1756713363785,0.39960843,109440.0,109430.0,0.3618]
[1756713364178,0.94894862,109440.0,109430.0,0.3618]
[1756713364386,0.94890862,109440.0,109430.0,0.3618]
[1756713364589,0.04918862,109440.0,109430.0,0.3618]
[1756713365283,0.94834862,109440.0,109430.0,0.3618]
[1756713365475,0.94830862,109440.0,109430.0,0.3618]
[1756713365677,0.94814862,109440.0,109430.0,0.4531742]
[1756713365877,0.94814862,109440.0,109430.0,0.7031742]
[1756713366080,0.96761252,109440.0,109430.0,0.6118]
[1756713366279,0.9184239,109440.0,109430.0,0.6118]
[1756713366777,0.0194639,109440.0,109430.0,0.6118]
[1756713366976,0.9180239,109440.0,109430.0,0.6118]
[1756713367482,0.9180239,109440.0,109430.0,0.7031741]
[1756713367685,0.9172639,109440.0,109430.0,0.7031741]
[1756713368182,0.9168239,109440.0,109430.0,0.4531741]
[1756713368883,0.0194639,109440.0,109430.0,1.05355391]
[1756713369073,0.0194639,109440.0,109430.0,0.7031741]
[1756713371785,0.9170239,109440.0,109430.0,0.7031741]
[1756713372976,0.9170239,109440.0,109430.0,0.7077341]
[1756713373576,0.0194639,109440.0,109430.0,0.7077341]
[1756713373782,1.26720371,109440.0,109430.0,0.36636]
[1756713373976,1.51720371,109440.0,109430.0,0.36636]
[1756713376892,1.51720371,109440.0,109430.0,0.00556]
[1756713378091,1.87800371,109440.0,109430.0,0.00556]
[1756713378687,1.95293051,109440.0,109430.0,0.00556]
[1756713378892,0.35037981,109410.0,109400.0,0.38141593]
[1756713379185,1.26516371,109410.0,109400.0,0.36072]
[1756713379687,1.26508371,109410.0,109400.0,0.36072]
[1756713380193,1.26508371,109410.0,109400.0,0.004]
[1756713380493,1.26508371,109410.0,109400.0,0.3648]
[1756713381502,1.26504371,109410.0,109400.0,0.3648]
[1756713383001,0.9146639,109410.0,109400.0,0.3648]
[1756713383302,1.26504371,109410.0,109400.0,0.3648]
[1756713384204,0.36984371,109410.0,109400.0,0.3648]
[1756713384398,0.9147039,109410.0,109400.0,0.3648]
[1756713384707,1.26508371,109410.0,109400.0,0.3648]
[1756713385096,0.0194639,109410.0,109400.0,0.3648]
[1756713385301,1.26508371,109410.0,109400.0,0.3648]
[1756713385504,0.9147039,109410.0,109400.0,0.6148]
[1756713385800,0.0194639,109410.0,109400.0,0.6148]
[1756713386106,0.89524,109410.0,109400.0,0.6148]
[1756713386410,0.89524,109410.0,109400.0,0.7061991]
[1756713387005,0.89524,109410.0,109400.0,0.72685234]
[1756713387204,0.89524,109410.0,109400.0,0.77508279]
[1756713387608,2.28165981,109430.0,109400.0,0.68368369]
[1756713387910,0.89524,109420.0,109410.0,0.3608]
[1756713388402,1.24561981,109420.0,109410.0,0.3608]
[1756713388904,0.89524,109420.0,109410.0,0.3608]
[1756713389111,1.24561981,109420.0,109410.0,0.3608]
[1756713390408,1.24561981,109420.0,109410.0,0.3638]
[1756713391105,0.35037981,109420.0,109410.0,0.3638]
[1756713391411,0.89524,109420.0,109410.0,0.3638]
[1756713391905,1.24561981,109420.0,109410.0,0.3638]
[1756713393511,1.49561981,109420.0,109410.0,0.3638]
[1756713394212,1.85641981,109420.0,109410.0,0.003]
[1756713395217,1.85669981,109420.0,109410.0,0.003]
[1756713395513,0.6108,109420.0,109410.0,0.003]
[1756713395709,1.85641981,109420.0,109400.0,0.3608]
[1756713395908,0.35037981,109410.0,109400.0,0.3608]
[1756713396312,0.89568,109410.0,109400.0,0.6108]
[1756713396710,1.24605981,109410.0,109400.0,0.3608]
[1756713397515,1.49605981,109410.0,109400.0,0.001]
[1756713397911,1.49593981,109410.0,109400.0,0.001]
[1756713399117,1.49593981,109410.0,109390.0,0.40903045]
[1756713399308,0.35037981,109400.0,109390.0,0.40903045]
[1756713400415,0.35037981,109400.0,109390.0,0.04823045]
[1756713400716,0.96117981,109400.0,109380.0,0.06884638]
[1756713400920,1.24629981,109390.0,109380.0,0.06884638]
[1756713401216,3.53873981,109390.0,109380.0,0.04823045]
[1756713402212,3.18836,109390.0,109380.0,0.04823045]
[1756713402424,3.78833981,109390.0,109380.0,0.04823045]
[1756713403110,3.79741297,109390.0,109380.0,0.04723045]
[1756713403317,3.79741297,109390.0,109360.0,0.06493552]
[1756713403513,0.71117981,109370.0,109360.0,0.06493552]
[1756713403715,1.60809981,109370.0,109350.0,0.06493552]
[1756713403914,0.35037981,109360.0,109340.0,0.39023032]
[1756713404114,1.24725981,109350.0,109340.0,0.39023032]
[1756713404717,0.35037981,109350.0,109340.0,0.39023032]
[1756713404916,1.24713981,109350.0,109340.0,0.39023032]
[1756713405316,0.35037981,109350.0,109340.0,0.39023032]
[1756713405615,0.89604,109350.0,109340.0,0.64023032]
[1756713406215,1.24641981,109350.0,109340.0,0.39023032]
[1756713406716,1.24641981,109350.0,109340.0,0.39523032]
[1756713407820,1.24641981,109350.0,109340.0,0.64523032]
[1756713408019,0.89552,109350.0,109340.0,0.64523032]
[1756713409121,0.89552,109350.0,109340.0,0.64507032]
[1756713409421,0.89556,109350.0,109340.0,0.64507032]
[1756713410116,0.89556,109350.0,109340.0,0.39507032]
[1756713411621,1.24593981,109350.0,109340.0,0.0139061]
[1756713411817,1.49593981,109350.0,109340.0,0.0139061]
[1756713412718,1.49593981,109350.0,109340.0,0.005]
[1756713413224,3.42825981,109350.0,109340.0,0.005]
[1756713413419,3.78905981,109350.0,109340.0,0.005]
[1756713414423,2.89349981,109350.0,109340.0,0.005]
[1756713414624,3.78913981,109350.0,109340.0,0.005]
[1756713414812,3.42833981,109350.0,109340.0,0.005]
[1756713415014,3.78913981,109350.0,109340.0,0.005]
[1756713416527,2.89349981,109350.0,109340.0,0.005]
[1756713416827,2.82796,109350.0,109340.0,0.005]
[1756713417428,3.17833981,109350.0,109340.0,0.005]
[1756713418129,3.53913981,109350.0,109340.0,0.005]
[1756713418331,3.17833981,109350.0,109340.0,0.005]
[1756713420619,1.93232,109350.0,109340.0,0.005]
[1756713420820,3.17833981,109350.0,109340.0,0.005]
[1756713421123,1.93232,109350.0,109340.0,0.6158]
[1756713421327,2.82796,109350.0,109340.0,0.6158]
[1756713426123,3.17833981,109350.0,109340.0,0.3658]
[1756713426626,3.17833981,109350.0,109340.0,0.005]
[1756713427135,3.07796,109350.0,109340.0,0.005]
[1756713427332,3.42833981,109350.0,109340.0,0.005]
[1756713427929,3.80993893,109350.0,109340.0,0.005]
[1756713428434,3.44913893,109350.0,109340.0,0.005]
[1756713429537,2.30349893,109350.0,109340.0,0.005]
[1756713429739,3.19905893,109350.0,109340.0,0.005]
[1756713430536,2.30349893,109350.0,109340.0,0.005]
[1756713430740,1.95311912,109350.0,109340.0,0.3658]
[1756713430939,1.93232,109350.0,109340.0,0.6158]
[1756713431140,2.84865656,109350.0,109340.0,0.6158]
[1756713431434,2.8278,109350.0,109340.0,0.96617981]
[1756713431645,2.8278,109350.0,109340.0,0.6158]
[1756713431941,2.84914147,109350.0,109340.0,0.6158]
[1756713432239,2.84916165,109350.0,109340.0,0.6158]
[1756713435542,0.00320563,109350.0,109340.0,1.07767746]
[1756713435835,0.8954,109370.0,109340.0,1.07767736]
[1756713436135,0.04929426,109380.0,109360.0,0.7216]
[1756713436343,0.04929426,109390.0,109370.0,0.3608]
[1756713436545,0.41640801,109400.0,109370.0,0.3608]
[1756713436546,0.94461426,109380.0,109370.0,0.3608]
[1756713437236,0.89532,109380.0,109370.0,0.3608]
[1756713438531,1.24569981,109380.0,109370.0,0.3608]
[1756713438738,1.24569981,109380.0,109370.0,0.3628]
[1756713439038,1.24561981,109380.0,109370.0,0.3628]
[1756713440048,0.89524,109380.0,109370.0,0.3628]
[1756713440648,1.24561981,109380.0,109370.0,0.3628]
[1756713441041,0.89524,109380.0,109370.0,0.3628]
[1756713441244,0.04929426,109390.0,109370.0,0.6128]
[1756713441447,0.04929426,109390.0,109380.0,0.3608]
[1756713441644,0.89508,109390.0,109380.0,0.3608]
[1756713442244,0.89508,109390.0,109380.0,0.43303997]
[1756713444239,1.24545981,109390.0,109380.0,0.43403997]
[1756713445555,0.89508,109390.0,109380.0,0.43403997]
[1756713445754,1.24545981,109390.0,109380.0,0.43403997]
[1756713446254,0.89508,109390.0,109380.0,0.43403997]
[1756713446456,0.04929426,109400.0,109380.0,0.43403997]
[1756713446657,0.04929426,109400.0,109390.0,0.3608]
[1756713446853,2.33235407,109410.0,109390.0,0.3608]
[1756713447062,0.89484,109400.0,109390.0,0.3608]
[1756713447562,1.56455711,109400.0,109390.0,0.3608]
[1756713448548,1.56455711,109400.0,109390.0,0.3618]
[1756713449148,1.56455711,109400.0,109390.0,0.3608]
[1756713449757,1.31439711,109400.0,109390.0,0.3608]
[1756713450560,1.31435711,109400.0,109390.0,0.3608]
[1756713450965,1.31435711,109400.0,109390.0,0.3618]
[1756713451358,1.26506285,109400.0,109390.0,0.3618]
[1756713451655,1.26506285,109400.0,109390.0,0.3608]
[1756713452468,1.26506285,109400.0,109390.0,0.36974948]
[1756713453060,1.16304783,109400.0,109390.0,0.36974948]
[1756713453762,0.91468304,109400.0,109390.0,0.36974948]
[1756713453962,1.16304783,109400.0,109390.0,0.36974948]
[1756713454162,1.16300783,109400.0,109390.0,0.36974948]
[1756713454557,1.16284783,109400.0,109390.0,0.36974948]
[1756713455560,1.16284783,109400.0,109390.0,0.3608]
[1756713455561,0.89448,109400.0,109390.0,0.3608]
[1756713455761,1.14284479,109400.0,109390.0,0.3608]
[1756713457065,1.14284479,109400.0,109390.0,0.3618]
[1756713457261,1.14284479,109400.0,109390.0,0.37099006]
[1756713457669,1.14284479,109400.0,109390.0,0.36999006]
[1756713458061,1.09317746,109400.0,109390.0,0.36999006]
[1756713459567,1.93268,109410.0,109390.0,0.81868752]
[1756713459870,2.13137746,109410.0,109400.0,0.3608]
[1756713460071,3.02561746,109410.0,109400.0,0.3608]
[1756713461462,2.13137746,109410.0,109400.0,0.3618]
[1756713461868,2.13137746,109410.0,109400.0,0.56049746]
[1756713461869,2.82684,109410.0,109400.0,0.56049746]
[1756713462072,2.82684,109410.0,109400.0,0.3618]
[1756713462268,0.3608,109430.0,109400.0,0.3618]
[1756713462472,0.24825773,109430.0,109420.0,0.3608]
[1756713462865,1.14237773,109430.0,109420.0,0.3608]
[1756713463059,0.24825773,109440.0,109420.0,0.3608]
[1756713463260,0.24825773,109440.0,109430.0,0.3608]
[1756713463467,1.14233773,109440.0,109430.0,0.37005909]
[1756713465573,1.14233773,109440.0,109430.0,0.37105909]
[1756713466973,0.89408,109440.0,109430.0,0.37105909]
[1756713467173,1.14233773,109440.0,109430.0,0.37105909]
[1756713467866,0.24825773,109440.0,109430.0,0.37105909]
[1756713468072,1.14205773,109440.0,109430.0,0.37105909]
[1756713468368,0.89376,109440.0,109430.0,0.37105909]
[1756713468566,1.14201773,109440.0,109430.0,0.37105909]
[1756713469164,1.14197773,109440.0,109430.0,0.37105909]
[1756713470375,1.14197773,109440.0,109430.0,0.01025909]
[1756713471973,0.89372,109440.0,109430.0,0.001]
[1756713472375,1.14197773,109440.0,109430.0,0.001]
[1756713476182,2.00103546,109440.0,109430.0,0.001]
[1756713476970,0.6108,109440.0,109430.0,0.001]
[1756713477284,1.75225773,109440.0,109430.0,0.001]
[1756713477582,2.00051546,109440.0,109430.0,0.001]
[1756713479284,1.770027,109440.0,109430.0,0.001]
[1756713481480,1.770027,109440.0,109400.0,0.36976387]
[1756713481684,0.24825773,109410.0,109400.0,0.36976387]
[1756713481884,1.14125773,109410.0,109400.0,0.36976387]
[1756713482085,1.29035172,109410.0,109400.0,0.36976387]
[1756713482684,1.29035172,109410.0,109400.0,0.37376387]
[1756713482884,0.19867586,109410.0,109400.0,0.37376387]
[1756713483085,1.09163586,109410.0,109400.0,0.37376387]
[1756713483286,1.09163586,109410.0,109400.0,0.36976387]
[1756713483488,1.09163586,109410.0,109400.0,0.37376387]
[1756713483683,0.3608,109430.0,109400.0,0.3942853]
[1756713483881,0.19867586,109410.0,109400.0,0.3942853]
[1756713484189,0.89288,109410.0,109400.0,0.59296116]
[1756713484486,0.89288,109410.0,109400.0,0.3942853]
[1756713484882,1.09155586,109410.0,109400.0,0.3942853]
[1756713485990,1.09155586,109410.0,109400.0,0.3932853]
[1756713488275,0.89288,109410.0,109400.0,0.3932853]
[1756713488480,1.09155586,109410.0,109400.0,0.3932853]
[1756713489084,1.11115706,109410.0,109400.0,0.3932853]
[1756713489392,0.9124812,109410.0,109400.0,0.3932853]
[1756713489593,1.11115706,109410.0,109400.0,0.3932853]
[1756713493383,1.09155586,109410.0,109400.0,0.3932853]
[1756713493689,0.89288,109410.0,109400.0,0.3932853]
[1756713493893,1.09155586,109410.0,109400.0,0.3932853]
[1756713494888,0.19867586,109410.0,109400.0,0.3932853]
[1756713495092,0.3608,109430.0,109400.0,0.59196116]
[1756713495294,1.09095586,109420.0,109400.0,0.59196116]
[1756713495592,1.11056056,109420.0,109400.0,0.59196116]
[1756713495782,0.21828056,109420.0,109400.0,0.59196116]
[1756713495980,0.89224,109410.0,109400.0,0.59196116]
[1756713496179,0.89224,109410.0,109400.0,0.94976116]
[1756713496379,0.89224,109410.0,109400.0,0.95276116]
[1756713496891,0.8922,109410.0,109400.0,1.20276116]
[1756713497592,0.8922,109410.0,109400.0,1.0040853]
[1756713497891,0.19867586,109420.0,109400.0,1.20276116]
[1756713498092,0.19867586,109430.0,109410.0,0.3608]
[1756713498291,0.21827758,109430.0,109420.0,0.3608]
[1756713498493,1.11035758,109430.0,109420.0,0.3608]
[1756713498693,0.21827758,109430.0,109420.0,0.3608]
[1756713498891,0.91164172,109430.0,109420.0,0.55947586]
[1756713499193,0.91156172,109430.0,109420.0,0.3608]
[1756713500500,1.11023758,109430.0,109420.0,0.3608]
[1756713500891,0.21819758,109430.0,109420.0,0.3608]
[1756713501091,0.91152172,109430.0,109420.0,0.3608]
[1756713501395,1.08519758,109430.0,109420.0,0.3618]
[1756713501698,0.88652172,109430.0,109420.0,0.3618]
[1756713501889,1.08519758,109430.0,109420.0,0.3618]
[1756713502590,0.88652172,109430.0,109420.0,0.3618]
[1756713502901,1.08519758,109430.0,109420.0,0.3618]
[1756713507000,1.08519758,109430.0,109420.0,0.38208299]
[1756713507195,2.29276,109450.0,109420.0,0.38208299]
[1756713507405,2.13063586,109450.0,109440.0,0.3608]
[1756713507595,3.02199586,109450.0,109440.0,0.3608]
[1756713508193,3.02199586,109450.0,109440.0,0.37014382]
[1756713508897,3.02199586,109450.0,109430.0,0.3608]
[1756713509200,3.02299586,109450.0,109440.0,0.3608]
[1756713510504,3.02199586,109450.0,109440.0,0.3608]
[1756713511290,3.02299586,109450.0,109440.0,0.3608]
[1756713512005,2.82432,109450.0,109440.0,0.3608]
[1756713512204,3.02299586,109450.0,109440.0,0.3608]
[1756713513198,3.04252949,109450.0,109440.0,0.3608]
[1756713513904,3.04240949,109450.0,109440.0,0.3608]
[1756713514802,2.84373363,109450.0,109440.0,0.3608]
[1756713515005,3.04240949,109450.0,109440.0,0.3608]
[1756713518012,2.84373363,109450.0,109440.0,0.3608]
[1756713518213,3.04240949,109450.0,109440.0,0.3608]
[1756713520214,3.04140949,109450.0,109440.0,0.3608]
[1756713521209,3.04240949,109450.0,109440.0,0.3608]
[1756713522012,2.15104949,109450.0,109440.0,0.3608]
[1756713522211,3.04116949,109450.0,109440.0,0.3608]
[1756713522613,3.04112949,109450.0,109440.0,0.3608]
[1756713523219,2.84245363,109450.0,109440.0,0.3608]
[1756713523512,3.04112949,109450.0,109440.0,0.3608]
[1756713523717,3.04012949,109450.0,109440.0,0.3608]
[1756713524422,3.04112949,109450.0,109440.0,0.3608]
[1756713524722,2.84245363,109450.0,109440.0,0.3608]
[1756713525016,2.82292,109450.0,109440.0,0.3608]
[1756713525220,3.02159586,109450.0,109440.0,0.38081296]
[1756713526620,3.02059586,109450.0,109440.0,0.38081296]
[1756713526810,2.82192,109450.0,109440.0,0.38081296]
[1756713527010,3.02059586,109450.0,109440.0,0.38081296]
[1756713527420,3.02159586,109450.0,109440.0,0.38081296]
[1756713528718,3.02107586,109450.0,109440.0,0.38081296]
[1756713529122,3.02103586,109450.0,109440.0,0.38073296]
[1756713529329,3.02103586,109450.0,109440.0,0.45476785]
[1756713530411,3.02103586,109450.0,109440.0,0.38073296]
[1756713531013,3.02103586,109450.0,109440.0,0.36072]
[1756713531213,3.84990138,109450.0,109430.0,0.36979065]
[1756713531413,0.19867586,109440.0,109430.0,0.36979065]
[1756713532924,3.18316,109450.0,109430.0,0.36979065]
[1756713533123,3.2025508,109450.0,109430.0,0.36979065]
[1756713533324,0.19867586,109440.0,109430.0,0.36979065]
[1756713533922,3.18216,109450.0,109430.0,0.36979065]
[1756713534123,3.20155094,109450.0,109430.0,0.36979065]
[1756713534323,1.08775586,109440.0,109430.0,0.36979065]
[1756713534718,0.88904,109440.0,109430.0,0.36979065]
[1756713534923,1.08771586,109440.0,109430.0,0.36979065]
[1756713535618,0.19867586,109440.0,109430.0,0.36979065]
[1756713535820,0.88904,109440.0,109430.0,0.36979065]
[1756713536123,1.08771586,109440.0,109430.0,0.36979065]
[1756713536714,1.08763586,109440.0,109430.0,0.36979065]
[1756713537514,0.88888,109440.0,109430.0,0.56846651]
[1756713538323,0.88876,109440.0,109430.0,0.81846651]
[1756713539214,0.88876,109440.0,109430.0,0.36979065]
[1756713539417,0.88876,109440.0,109430.0,0.56846651]
[1756713539613,0.88876,109440.0,109430.0,0.56946651]
[1756713540213,1.08743586,109440.0,109430.0,0.37079065]
[1756713540416,1.08743586,109440.0,109430.0,0.36979065]
[1756713540616,1.08743586,109440.0,109430.0,0.37079065]
[1756713540820,0.88876,109440.0,109430.0,0.37079065]
[1756713541025,1.08723586,109440.0,109430.0,0.37079065]
[1756713541325,0.88856,109440.0,109430.0,0.37079065]
[1756713542121,2.13047586,109450.0,109430.0,0.37079065]
[1756713542323,2.14986911,109450.0,109440.0,0.3608]
[1756713542525,3.03830911,109450.0,109440.0,0.3608]
[1756713542729,3.03826911,109450.0,109440.0,0.3608]
[1756713543118,2.14986911,109450.0,109440.0,0.3608]
[1756713543524,3.03922911,109450.0,109440.0,0.3608]
[1756713543824,2.84051325,109450.0,109440.0,0.3608]
[1756713544418,3.03918911,109450.0,109440.0,0.3608]
[1756713544625,3.03914911,109450.0,109440.0,0.3608]
[1756713544822,2.15086911,109450.0,109440.0,0.3608]
[1756713545026,3.03910911,109450.0,109440.0,0.3608]
[1756713545923,2.15086911,109450.0,109440.0,0.3608]
[1756713546124,3.03906911,109450.0,109440.0,0.3608]
[1756713548829,3.03906911,109450.0,109430.0,0.38977931]
[1756713549035,0.19867586,109440.0,109430.0,0.38977931]
[1756713552136,2.82,109450.0,109430.0,0.38977931]
[1756713552337,2.14993435,109450.0,109440.0,0.3608]
[1756713552533,3.03769435,109450.0,109440.0,0.3608]
[1756713554036,2.83901849,109450.0,109440.0,0.3608]
[1756713554234,3.03769435,109450.0,109440.0,0.3608]
[1756713554430,3.03869435,109450.0,109440.0,0.3608]
[1756713554626,3.03869435,109450.0,109440.0,0.43284688]
[1756713554830,1.10689435,109450.0,109440.0,0.43284688]
[1756713555136,1.10665435,109450.0,109440.0,0.43284688]
[1756713555936,1.10657435,109450.0,109440.0,0.43284688]
[1756713556136,0.02045849,109450.0,109440.0,0.43284688]
[1756713556339,0.02045849,109450.0,109440.0,0.63152274]
[1756713556533,0.90781849,109450.0,109440.0,0.43284688]
[1756713557335,0.90681849,109450.0,109440.0,0.43284688]
[1756713557637,1.10549435,109450.0,109440.0,0.43284688]
[1756713558034,1.10550874,109450.0,109440.0,0.43284688]
[1756713558838,0.90683288,109450.0,109440.0,0.43284688]
[1756713559340,0.90783288,109450.0,109440.0,0.43284688]
[1756713559639,1.10650874,109450.0,109440.0,0.43284688]
[1756713559941,1.10550874,109450.0,109440.0,0.43284688]
[1756713560141,0.90683288,109450.0,109440.0,0.43284688]
[1756713560435,1.10550874,109450.0,109440.0,0.43284688]
[1756713561935,1.10650874,109450.0,109440.0,0.43284688]
[1756713564337,0.90783288,109450.0,109440.0,0.43284688]
[1756713564538,1.10650874,109450.0,109440.0,0.43284688]
[1756713566141,0.90783288,109450.0,109440.0,0.43284688]
[1756713566342,1.10650874,109450.0,109440.0,0.43284688]
[1756713567636,0.21914874,109450.0,109440.0,0.43284688]
[1756713567834,1.10570874,109450.0,109440.0,0.43284688]
[1756713568535,0.90703288,109450.0,109440.0,0.43284688]
[1756713568734,0.90303288,109450.0,109440.0,0.43284688]
[1756713570035,1.10170874,109450.0,109440.0,0.43284688]
[1756713571535,0.90303288,109450.0,109440.0,0.43284688]
[1756713573645,0.90251288,109450.0,109440.0,0.43284688]
[1756713575148,1.10118874,109450.0,109440.0,0.43284688]
[1756713576348,1.08571586,109450.0,109440.0,0.43284688]
[1756713577748,0.88704,109450.0,109440.0,0.63152274]
[1756713578048,0.88668,109450.0,109440.0,0.67973464]
[1756713579249,0.88668,109450.0,109440.0,0.48105878]
[1756713579549,0.88668,109450.0,109440.0,0.92973464]
[1756713579746,0.88668,109450.0,109440.0,1.1284105]
[1756713580143,0.88668,109450.0,109440.0,0.92973464]
[1756713580343,0.88668,109450.0,109440.0,0.73105878]
[1756713580841,0.88668,109450.0,109440.0,0.92973464]
[1756713581047,0.88656,109450.0,109440.0,1.1284105]
[1756713582950,0.88656,109450.0,109440.0,0.92973464]
[1756713586260,0.001,109450.0,109440.0,0.92973464]
[1756713586459,0.001,109450.0,109440.0,0.73105878]
[1756713586660,0.001,109450.0,109440.0,0.92973464]
[1756713587263,0.001,109450.0,109440.0,1.02110024]
[1756713587657,0.001,109450.0,109440.0,1.2197761]
[1756713588159,0.001,109450.0,109440.0,2.1050161]
[1756713590269,0.001,109450.0,109440.0,2.12173972]
[1756713591259,0.001,109450.0,109440.0,1.724388]
[1756713591464,0.001,109450.0,109440.0,0.7477824]
[1756713591765,0.001,109450.0,109440.0,2.03261412]
[1756713591966,0.001,109450.0,109440.0,1.6352624]
[1756713592360,0.001,109450.0,109440.0,0.63152274]
[1756713592560,0.001,109450.0,109440.0,0.43284688]
[1756713592766,0.001,109450.0,109440.0,0.63152274]
[1756713593165,0.001,109450.0,109440.0,0.43284688]
[1756713593365,0.001,109450.0,109440.0,0.8301986]
[1756713594571,0.001,109450.0,109440.0,0.63152274]
[1756713595261,0.001,109450.0,109440.0,0.43284688]
[1756713595472,0.001,109450.0,109440.0,0.8301986]
[1756713595962,0.001,109450.0,109440.0,0.43284688]
[1756713596161,0.001,109450.0,109440.0,0.63152274]
[1756713596468,0.001,109450.0,109440.0,0.48080329]
[1756713596858,0.001,109450.0,109440.0,0.67947915]
[1756713597064,0.001,109450.0,109440.0,0.9215645]
[1756713597272,0.0231,109470.0,109450.0,0.0913492]
[1756713597464,0.0231,109470.0,109460.0,0.92027586]
[1756713598069,0.0231,109470.0,109460.0,1.01162506]
[1756713599063,0.0241,109470.0,109460.0,1.01162506]
[1756713599264,0.19867586,109520.0,109480.0,0.0913263]
[1756713599566,0.80496809,109520.0,109500.0,0.3608]
[1756713600158,0.78552,109520.0,109500.0,0.3608]
[1756713600463,0.25,109510.0,109500.0,0.3608]
[1756713600770,0.23,109510.0,109490.0,0.3608]
[1756713601074,0.01944692,109510.0,109500.0,0.3608]
[1756713601267,1.16548692,109510.0,109500.0,0.3608]
[1756713601572,0.91548692,109510.0,109500.0,0.3608]
[1756713601869,0.89604,109510.0,109500.0,0.3608]
[1756713602066,0.3608,109530.0,109500.0,0.3608]
[1756713602758,0.38023343,109530.0,109500.0,0.3608]
[1756713602964,0.38023343,109530.0,109510.0,0.3608]
[1756713603164,0.89684,109520.0,109510.0,0.3608]
[1756713603471,0.8968,109520.0,109510.0,0.3608]
[1756713603668,0.89696,109520.0,109510.0,0.3608]
[1756713603870,0.89676,109520.0,109510.0,0.3608]
[1756713604062,2.29144,109550.0,109510.0,0.3808]
[1756713604266,2.30374263,109550.0,109530.0,0.3608]
[1756713604562,1.94294263,109550.0,109530.0,0.3808]
[1756713604762,0.01942263,109550.0,109540.0,0.3808]
[1756713605864,0.02611574,109560.0,109550.0,0.0912749]
[1756713606067,0.02611574,109560.0,109550.0,0.3608]
[1756713606481,0.02611574,109560.0,109550.0,0.7020748]
[1756713606773,0.04920157,109600.0,109560.0,0.0912608]
[1756713606974,0.04920157,109600.0,109590.0,0.3608]
[1756713607477,0.04920157,109610.0,109590.0,0.7020374]